fUSD/lending_fUSD_20260202
["ID","MTS","AMOUNT","RATE_DAILY","PERIOD"]
[404261602,1770012645209,-500.0,0.00015473,2]
[404261603,1770012645219,-559.67308476,0.00015473,2]
[404261604,1770012645228,-501.33451157,0.00015473,2]
[404261605,1770012645238,-500.6120606,0.00015473,2]
[404261606,1770012645247,-500.62768041,0.00015473,2]
[404261607,1770012645257,-500.0,0.00015473,2]
[404261608,1770012645267,-500.0,0.00015473,2]
[404261609,1770012645277,-500.0,0.00015473,2]
[404261610,1770012645287,-500.0,0.00015473,2]
[404261611,1770012645297,-500.0,0.00015473,2]
[404261612,1770012645309,-500.0,0.00015473,2]
[404261613,1770012645318,-291.61164288,0.00015473,2]
[404261614,1770012645328,-500.0,0.00015473,2]
[404261615,1770012645339,-550.09529227,0.00015473,2]
[404261616,1770012645355,-500.0,0.00015473,2]
[404261617,1770012645364,-500.0,0.00015473,2]
[404261618,1770012645373,-500.0,0.00015473,2]
[404261619,1770012645384,-500.0,0.00015473,2]
[404261620,1770012645394,-500.0,0.00015473,2]
[404261621,1770012645403,-428.50325514,0.00015616,2]
[404261622,1770012645412,-1286.37746061,0.00015616,2]
[404261623,1770012645422,-500.0,0.00015616,2]
[404261624,1770012645431,-500.0,0.00015644,2]
[404261625,1770012645440,-152.55848434,0.00015911,2]
[404261626,1770012645449,-10000.0,0.00015921,2]
[404261627,1770012645458,-14078.0,0.00015971,2]
[404261628,1770012645467,-315.04617958,0.00015977,2]
[404261629,1770012645476,-15252.87164763,0.00015977,2]
[404261630,1770012645485,-15994.77007355,0.00015977,2]
[404261631,1770012645495,-1000.0,0.00016021,2]
[404261632,1770012645504,-501.94112039,0.00016021,2]
[404261633,1770012645513,-1003.27979337,0.00016021,2]
[404261634,1770012645522,-1000.0,0.00016021,2]
[404261635,1770012645531,-1000.0,0.00016021,2]
[404261636,1770012645540,-1000.0,0.00016021,2]
[404261637,1770012645552,-1000.0,0.00016021,2]
[404261638,1770012645563,-1000.0,0.00016021,2]
[404261639,1770012645574,-1000.0,0.00016021,2]
[404261640,1770012645586,-1000.0,0.00016021,2]
[404261641,1770012645603,-501.09302375,0.00016021,2]
[404261642,1770012645614,-1000.0,0.00016021,2]
[404261643,1770012645624,-502.28798495,0.00016021,2]
[404261644,1770012645637,-501.89927416,0.00016021,2]
[404261645,1770012645648,-899.10712823,0.00016021,2]
[404261646,1770012645658,-1000.0,0.00016021,2]
[404261647,1770012645669,-586.45296103,0.00016021,2]
[404261648,1770012645680,-1000.0,0.00016021,2]
[404261649,1770012645690,-1000.0,0.00016021,2]
[404261650,1770012645701,-1003.91068608,0.00016021,2]
[404261651,1770012645711,-1000.0,0.00016021,2]
[404261652,1770012645722,-1000.0,0.00016021,2]
[404261653,1770012645732,-1000.0,0.00016021,2]
[404261654,1770012645746,-1018.80564021,0.00016021,2]
[404261655,1770012645757,-1000.0,0.00016021,2]
[404261656,1770012645768,-1000.0,0.00016021,2]
[404261657,1770012645778,-501.08336444,0.00016021,2]
[404261658,1770012645789,-1000.0,0.00016021,2]
[404261659,1770012645800,-1000.0,0.00016021,2]
[404261660,1770012645811,-1000.0,0.00016021,2]
[404261661,1770012645822,-1000.0,0.00016021,2]
[404261662,1770012645834,-1000.0,0.00016021,2]
[404261663,1770012645855,-1000.0,0.00016021,2]
[404261664,1770012645866,-1000.0,0.00016021,2]
[404261665,1770012645876,-1000.0,0.00016021,2]
[404261666,1770012645887,-987.31307274,0.00016021,2]
[404261667,1770012645897,-1000.0,0.00016021,2]
[404261668,1770012645907,-1000.0,0.00016021,2]
[404261669,1770012645917,-501.96102054,0.00016021,2]
[404261670,1770012645927,-1145.60955598,0.00016021,2]
[404261672,1770012645937,-1003.56149344,0.00016021,2]
[404261673,1770012645946,-1000.0,0.00016021,2]
[404261674,1770012645956,-176.86,0.00016046,2]
[404261675,1770012645966,-449.19,0.00016071,2]
[404261676,1770012645976,-165.75,0.000161,2]
[404261677,1770012645985,-3412.42,0.00016116,2]
[404261678,1770012645995,-250.0,0.00016136,2]
[404261679,1770012646005,-3292.0,0.00016253,2]
[404261680,1770012646015,-1600.0,0.00016325,2]
[404261681,1770012646024,-262.7,0.00016325,2]
[404261682,1770012646034,-578.20924308,0.00016342,2]
[404261683,1770012646043,-1428.38747117,0.00016342,2]
[404261684,1770012646054,-500.0,0.00016342,2]
[404261685,1770012646065,-209.40437684,0.00016342,2]
[404261686,1770012646074,-500.0,0.00016342,2]
[404261687,1770012646084,-250.0,0.00016342,2]
[404261688,1770012646099,-500.0,0.00016342,2]
[404261689,1770012646108,-151.0,0.00016342,2]
[404261691,1770012646118,-250.0,0.00016342,2]
[404261693,1770012646128,-500.0,0.00016342,2]
[404261695,1770012646138,-151.0,0.00016342,2]
[404261697,1770012646147,-250.0,0.00016342,2]
[404261698,1770012646157,-500.0,0.00016342,2]
[404261699,1770012646166,-151.0,0.00016342,2]
[404261700,1770012646175,-250.0,0.00016342,2]
[404261701,1770012646184,-500.0,0.00016342,2]
[404261702,1770012646193,-151.0,0.00016342,2]
[404261703,1770012646203,-250.0,0.00016342,2]
[404261704,1770012646212,-500.0,0.00016342,2]
[404261705,1770012646222,-151.0,0.00016342,2]
[404261706,1770012646231,-250.0,0.00016342,2]
[404261707,1770012646240,-500.0,0.00016342,2]
[404261708,1770012646250,-151.0,0.00016342,2]
[404261709,1770012646259,-250.0,0.00016342,2]
[404261710,1770012646268,-500.0,0.00016342,2]
[404261711,1770012646277,-151.0,0.00016342,2]
[404261712,1770012646286,-250.0,0.00016342,2]
[404261713,1770012646297,-151.49674582,0.00016342,2]
[404261714,1770012646311,-500.0,0.00016342,2]
[404261715,1770012646320,-174.61919141,0.00016342,2]
[404261716,1770012646330,-151.0,0.00016342,2]
[404261717,1770012646339,-250.0,0.00016342,2]
[404261718,1770012646357,-500.0,0.00016342,2]
[404261719,1770012646366,-151.0,0.00016342,2]
[404261720,1770012646375,-250.0,0.00016342,2]
[404261721,1770012646386,-168.90333538,0.00016342,2]
[404261722,1770012646397,-151.0,0.00016342,2]
[404261723,1770012646406,-250.0,0.00016342,2]
[404261724,1770012646415,-151.0,0.00016342,2]
[404261725,1770012646424,-209.40437684,0.00016342,2]
[404261726,1770012646434,-500.0,0.00016342,2]
[404261727,1770012646443,-500.0,0.00016342,2]
[404261728,1770012646452,-500.0,0.00016342,2]
[404261729,1770012646462,-500.0,0.00016342,2]
[404261730,1770012646471,-500.0,0.00016342,2]
[404261731,1770012646481,-500.0,0.00016342,2]
[404261732,1770012646490,-250.0,0.00016342,2]
[404261733,1770012646499,-500.0,0.00016342,2]
[404261734,1770012646509,-250.0,0.00016342,2]
[404261735,1770012646519,-500.0,0.00016342,2]
[404261736,1770012646528,-250.0,0.00016342,2]
[404261737,1770012646537,-500.0,0.00016342,2]
[404261738,1770012646547,-250.0,0.00016342,2]
[404261739,1770012646557,-500.0,0.00016342,2]
[404261740,1770012646566,-250.0,0.00016342,2]
[404261741,1770012646576,-500.0,0.00016342,2]
[404261742,1770012646585,-250.0,0.00016342,2]
[404261743,1770012646600,-250.0,0.00016342,2]
[404261744,1770012646609,-250.0,0.00016342,2]
[404261745,1770012646618,-250.0,0.00016342,2]
[404261746,1770012646627,-250.0,0.00016342,2]
[404261748,1770012646636,-250.0,0.00016342,2]
[404261749,1770012646646,-250.0,0.00016342,2]
[404261751,1770012646656,-250.0,0.00016342,2]
[404261754,1770012646666,-250.0,0.00016342,2]
[404261755,1770012646675,-250.0,0.00016342,2]
[404261757,1770012646685,-250.0,0.00016342,2]
[404261760,1770012646694,-250.0,0.00016342,2]
[404261762,1770012646703,-322.6107,0.00016342,2]
[404261764,1770012646713,-250.0,0.00016342,2]
[404261765,1770012646722,-250.0,0.00016342,2]
[404261767,1770012646731,-250.0,0.00016342,2]
[404261768,1770012646751,-250.0,0.00016342,2]
[404261769,1770012646772,-250.0,0.00016342,2]
[404261770,1770012646789,-250.0,0.00016342,2]
[404261771,1770012646799,-250.0,0.00016342,2]
[404261772,1770012646809,-250.0,0.00016342,2]
[404261774,1770012646819,-250.0,0.00016342,2]
[404261775,1770012646829,-250.0,0.00016342,2]
[404261776,1770012646839,-250.0,0.00016342,2]
[404261777,1770012646853,-721.12765535,0.00016342,2]
[404261778,1770012646863,-250.0,0.00016342,2]
[404261779,1770012646873,-250.0,0.00016342,2]
[404261780,1770012646884,-250.0,0.00016342,2]
[404261781,1770012646894,-250.0,0.00016342,2]
[404261782,1770012646905,-250.0,0.00016342,2]
[404261783,1770012646915,-500.0,0.00016342,2]
[404261784,1770012646925,-500.0,0.00016342,2]
[404261785,1770012646935,-500.0,0.00016342,2]
[404261786,1770012646945,-500.0,0.00016342,2]
[404261787,1770012646955,-500.0,0.00016342,2]
[404261788,1770012646965,-500.0,0.00016342,2]
[404261789,1770012646974,-500.0,0.00016342,2]
[404261790,1770012646984,-500.0,0.00016342,2]
[404261791,1770012646994,-209.40437684,0.00016342,2]
[404261792,1770012647004,-500.0,0.00016342,2]
[404261793,1770012647014,-500.0,0.00016342,2]
[404261794,1770012647024,-859.80605061,0.00016342,2]
[404261795,1770012647033,-344.38825217,0.00016342,2]
[404261796,1770012647044,-500.0,0.00016342,2]
[404261797,1770012647054,-500.0,0.00016342,2]
[404261798,1770012647064,-500.0,0.00016342,2]
[404261799,1770012647074,-500.0,0.00016342,2]
[404261800,1770012647084,-500.0,0.00016342,2]
[404261801,1770012647098,-500.0,0.00016342,2]
[404261802,1770012647107,-500.0,0.00016342,2]
[404261803,1770012647116,-500.0,0.00016342,2]
[404261804,1770012647126,-500.0,0.00016342,2]
[404261805,1770012647135,-500.0,0.00016342,2]
[404261806,1770012647144,-500.0,0.00016342,2]
[404261807,1770012647153,-244.52182497,0.00016354,2]
[404261808,1770012647163,-1055.96,0.00016381,2]
[404261809,1770012647172,-217.15233878,0.00016397,2]
[404261810,1770012647181,-1872.11781497,0.00016438,2]
[404261811,1770012647191,-500.0,0.00016438,2]
[404261812,1770012647200,-419.34493254,0.00016438,2]
[404261813,1770012647210,-1752.70233085,0.00016438,2]
[404261814,1770012647219,-1752.70233085,0.00016438,2]
[404261815,1770012647228,-1752.70233085,0.00016438,2]
[404261816,1770012647238,-1752.70233085,0.00016438,2]
[404261817,1770012647247,-1752.70233085,0.00016438,2]
[404261818,1770012647257,-1752.70233085,0.00016438,2]
[404261819,1770012647272,-1752.70233085,0.00016438,2]
[404261820,1770012647292,-1752.70233085,0.00016438,2]
[404261821,1770012647312,-1752.70233085,0.00016438,2]
[404261822,1770012647326,-1752.70233085,0.00016438,2]
[404261823,1770012647338,-1752.70233085,0.00016438,2]
[404261824,1770012647351,-1752.70233085,0.00016438,2]
[404261825,1770012647362,-1752.70233085,0.00016438,2]
[404261826,1770012647374,-1752.70233085,0.00016438,2]
[404261827,1770012647384,-1752.70233085,0.00016438,2]
[404261828,1770012647395,-1752.70233085,0.00016438,2]
[404261829,1770012647406,-1752.70233085,0.00016438,2]
[404261830,1770012647417,-1752.70233085,0.00016438,2]
[404261831,1770012647426,-1752.70233085,0.00016438,2]
[404261832,1770012647436,-1752.70233085,0.00016438,2]
[404261833,1770012647447,-1752.70233085,0.00016438,2]
[404261834,1770012647458,-1752.70233085,0.00016438,2]
[404261835,1770012647468,-1752.70233085,0.00016438,2]
[404261836,1770012647478,-1752.70233085,0.00016438,2]
[404261837,1770012647488,-1752.70233085,0.00016438,2]
[404261838,1770012647498,-1752.70233085,0.00016438,2]
[404261839,1770012647509,-1752.70233085,0.00016438,2]
[404261840,1770012647519,-1752.70233085,0.00016438,2]
[404261841,1770012647529,-1752.70233085,0.00016438,2]
[404261842,1770012647542,-1752.70233085,0.00016438,2]
[404261843,1770012647553,-1752.70233085,0.00016438,2]
[404261844,1770012647564,-1752.70233085,0.00016438,2]
[404261845,1770012647575,-1752.70233085,0.00016438,2]
[404261846,1770012647586,-1752.70233085,0.00016438,2]
[404261847,1770012647600,-1752.70233085,0.00016438,2]
[404261848,1770012647609,-1752.70233085,0.00016438,2]
[404261849,1770012647620,-1752.70233085,0.00016438,2]
[404261850,1770012647630,-1752.70233085,0.00016438,2]
[404261851,1770012647640,-1752.70233085,0.00016438,2]
[404261852,1770012647651,-1752.70233085,0.00016438,2]
[404261853,1770012647663,-1752.70233085,0.00016438,2]
[404261854,1770012647674,-1752.70233085,0.00016438,2]
[404261855,1770012647686,-1752.70233085,0.00016438,2]
[404261856,1770012647697,-1752.70233085,0.00016438,2]
[404261857,1770012647709,-1752.70233085,0.00016438,2]
[404261858,1770012647719,-1752.70233085,0.00016438,2]
[404261859,1770012647729,-1752.70233085,0.00016438,2]
[404261860,1770012647740,-1752.70233085,0.00016438,2]
[404261861,1770012647751,-1752.70233085,0.00016438,2]
[404261862,1770012647763,-1752.70233085,0.00016438,2]
[404261863,1770012647773,-1752.70233085,0.00016438,2]
[404261864,1770012647782,-1752.70233085,0.00016438,2]
[404261865,1770012647792,-1752.70233085,0.00016438,2]
[404261866,1770012647803,-1752.70233085,0.00016438,2]
[404261867,1770012647814,-1752.70233085,0.00016438,2]
[404261868,1770012647823,-1752.70233085,0.00016438,2]
[404261869,1770012647834,-1752.70233085,0.00016438,2]
[404261870,1770012647847,-1752.70233085,0.00016438,2]
[404261871,1770012647857,-1730.0868169,0.00016438,2]
[404261872,1770012647868,-1730.0868169,0.00016438,2]
[404261874,1770012647881,-1730.0868169,0.00016438,2]
[404261875,1770012647892,-1730.0868169,0.00016438,2]
[404261877,1770012647902,-1730.0868169,0.00016438,2]
[404261878,1770012647914,-1730.0868169,0.00016438,2]
[404261879,1770012647925,-1730.0868169,0.00016438,2]
[404261880,1770012647936,-1730.0868169,0.00016438,2]
[404261881,1770012647946,-1730.0868169,0.00016438,2]
[404261882,1770012647956,-1730.0868169,0.00016438,2]
[404261883,1770012647966,-1730.0868169,0.00016438,2]
[404261884,1770012647976,-1730.0868169,0.00016438,2]
[404261885,1770012647986,-1730.0868169,0.00016438,2]
[404261886,1770012647996,-1730.0868169,0.00016438,2]
[404261887,1770012648005,-1730.0868169,0.00016438,2]
[404261888,1770012648015,-1730.0868169,0.00016438,2]
[404261889,1770012648025,-1730.0868169,0.00016438,2]
[404261890,1770012648035,-1730.0868169,0.00016438,2]
[404261891,1770012648045,-1730.0868169,0.00016438,2]
[404261893,1770012648055,-1730.0868169,0.00016438,2]
[404261894,1770012648066,-1730.0868169,0.00016438,2]
[404261895,1770012648076,-1730.0868169,0.00016438,2]
[404261896,1770012648086,-1730.0868169,0.00016438,2]
[404261897,1770012648098,-1730.0868169,0.00016438,2]
[404261898,1770012648109,-1730.0868169,0.00016438,2]
[404261899,1770012648119,-1730.0868169,0.00016438,2]
[404261900,1770012648128,-1730.0868169,0.00016438,2]
[404261901,1770012648138,-1730.0868169,0.00016438,2]
[404261902,1770012648148,-1730.0868169,0.00016438,2]
[404261903,1770012648157,-1730.0868169,0.00016438,2]
[404261904,1770012648167,-1730.0868169,0.00016438,2]
[404261905,1770012648177,-500.0,0.00016438,2]
[404261906,1770012648187,-284.66,0.00016438,2]
[404261907,1770012648197,-250.55733734,0.00016438,2]
[404261908,1770012648207,-800.78453244,0.00016438,2]
[404261909,1770012648217,-225.18697532,0.00016452,2]
[404261910,1770012648226,-500.0,0.00016493,2]
[404261911,1770012648236,-160.02702936,0.00016498,2]
[404261912,1770012648245,-181.47243878,0.00016503,2]
[404261913,1770012648254,-233.51889341,0.00016507,2]
[404261914,1770012648264,-500.0,0.00016548,2]
[404261915,1770012648274,-242.15909246,0.00016562,2]
[404261916,1770012648285,-1500.0,0.00016568,2]
[404261917,1770012648446,-343.08326797,0.00016568,2]
[404261918,1770012648492,-1500.0,0.00016568,2]
[404261919,1770012648502,-665.40489721,0.00016568,2]
[404261920,1770012648512,-1500.0,0.00016568,2]
[404261921,1770012648521,-1500.0,0.00016568,2]
[404261922,1770012648532,-1500.0,0.00016568,2]
[404261923,1770012648543,-1500.0,0.00016568,2]
[404261924,1770012648553,-505.45817911,0.00016568,2]
[404261925,1770012648564,-622.87168328,0.00016568,2]
[404261926,1770012648574,-240.83933027,0.00016568,2]
[404261927,1770012648584,-1500.0,0.00016568,2]
[404261928,1770012648594,-1500.0,0.00016568,2]
[404261929,1770012648609,-545.1454494,0.00016568,2]
[404261930,1770012648618,-1500.0,0.00016568,2]
[404261931,1770012648629,-504.30163313,0.00016568,2]
[404261932,1770012648640,-1500.0,0.00016568,2]
[404261933,1770012648650,-1500.0,0.00016568,2]
[404261934,1770012648662,-1500.0,0.00016568,2]
[404261935,1770012648674,-1004.26216588,0.00016568,2]
[404261936,1770012648684,-1005.24936027,0.00016568,2]
[404261937,1770012648695,-505.38162593,0.00016568,2]
[404261938,1770012648705,-1005.54193795,0.00016568,2]
[404261939,1770012648715,-1500.0,0.00016568,2]
[404261940,1770012648726,-1500.0,0.00016568,2]
[404261941,1770012648736,-1500.0,0.00016568,2]
[404261942,1770012648746,-504.6853335,0.00016568,2]
[404261943,1770012648758,-776.88278142,0.00016568,2]
[404261944,1770012648770,-500.0,0.00016602,2]
[404261945,1770012648780,-500.0,0.00016603,2]
[404261946,1770012648790,-251.11897888,0.00016617,2]
[404261947,1770012648800,-15252.87164763,0.00016618,2]
[404261948,1770012648810,-15994.77007355,0.00016618,2]
[404261949,1770012648822,-500.0,0.00016657,2]
[404261950,1770012648832,-260.4103811,0.00016672,2]
[404261951,1770012648842,-500.0,0.00016712,2]
[404261952,1770012648853,-839.0,0.0001672,2]
[404261953,1770012648863,-839.0,0.0001672,2]
[404261954,1770012648873,-836.0,0.0001672,2]
[404261955,1770012648883,-270.0455652,0.00016727,2]
[404261956,1770012648892,-10091.57601831,0.00016759,2]
[404261957,1770012648902,-500.0,0.00016767,2]
[404261958,1770012648912,-280.03725112,0.00016782,2]
[404261959,1770012648922,-1500.0,0.000168,2]
[404261960,1770012648931,-500.0,0.00016822,2]
[404261961,1770012648940,-290.39862941,0.00016837,2]
[404261962,1770012648950,-500.0,0.00016876,2]
[404261963,1770012648959,-868.9,0.00016881,2]
[404261964,1770012648968,-217.15233878,0.0001689,2]
[404261965,1770012648977,-1481.23780761,0.0001689,2]
[404261966,1770012648987,-181.08010149,0.0001689,2]
[404261967,1770012648997,-217.15233878,0.0001689,2]
[404261968,1770012649006,-891.61887448,0.0001689,2]
[404261969,1770012649016,-301.1433787,0.00016892,2]
[404261970,1770012649026,-500.0,0.00016895,2]
[404261971,1770012649036,-500.0,0.00016931,2]
[404261972,1770012649046,-315.04617958,0.00016939,2]
[404261973,1770012649055,-500.0,0.00016986,2]
[404261974,1770012649065,-300.0,0.00017,2]
[404261975,1770012649075,-1500.0,0.00017,2]
[404261976,1770012649084,-176.86,0.00017023,2]
[404261977,1770012649094,-449.19,0.00017037,2]
[404261978,1770012649107,-1625.0,0.0001704,2]
[404261979,1770012649116,-163.0,0.0001704,2]
[404261980,1770012649126,-500.0,0.00017041,2]
[404261981,1770012649136,-500.0,0.00017096,2]
[404261982,1770012649145,-2128.18837233,0.00017116,2]
[404261983,1770012649155,-2000.0,0.00017116,2]
[404261984,1770012649164,-315.28060531,0.00017116,2]
[404261985,1770012649174,-2000.0,0.00017116,2]
[404261986,1770012649184,-2000.0,0.00017116,2]
[404261987,1770012649194,-1143.18674336,0.00017116,2]
[404261988,1770012649204,-1988.36339388,0.00017116,2]
[404261989,1770012649213,-1756.98671009,0.00017116,2]
[404261990,1770012649223,-1474.64879752,0.00017116,2]
[404261991,1770012649232,-1008.230722,0.00017116,2]
[404261992,1770012649243,-1006.20015718,0.00017116,2]
[404261993,1770012649252,-2000.0,0.00017116,2]
[404261994,1770012649262,-1189.68040771,0.00017116,2]
[404261995,1770012649272,-2000.0,0.00017116,2]
[404261996,1770012649281,-2000.0,0.00017116,2]
[404261997,1770012649291,-500.0,0.0001715,2]
[404261998,1770012649302,-1899.6725397,0.00017152,2]
[404261999,1770012649312,-989.28,0.00017155,2]
[404262000,1770012649322,-773.23,0.00017183,2]
[404262001,1770012649331,-160.02702936,0.00017185,2]
[404262002,1770012649341,-500.0,0.00017205,2]
[404262003,1770012649353,-161.033,0.00017209,2]
[404262004,1770012649363,-1278.693,0.00017209,2]
[404262005,1770012649373,-1205.0,0.00017209,2]
[404262006,1770012649383,-925.751,0.00017209,2]
[404262007,1770012649392,-2445.0,0.00017209,2]
[404262008,1770012649402,-6579.0,0.00017209,2]
[404262009,1770012649411,-3253.0,0.00017209,2]
[404262010,1770012649420,-15252.87164763,0.00017259,2]
[404262011,1770012649430,-15994.77007355,0.00017259,2]
[404262012,1770012649441,-500.0,0.0001726,2]
[404262013,1770012649450,-1000.0,0.0001726,2]
[404262014,1770012649459,-500.0,0.00017315,2]
[404262015,1770012649469,-262.7,0.0001732,2]
[404262016,1770012649479,-163.0,0.0001736,2]
[404262017,1770012649488,-163.0,0.0001736,2]
[404262018,1770012649498,-500.0,0.0001737,2]
[404262019,1770012649507,-503.86937896,0.00017424,2]
[404262020,1770012649517,-225.18697532,0.00017438,2]
[404262021,1770012649527,-1536.04360649,0.00017438,2]
[404262022,1770012649537,-187.78006525,0.00017438,2]
[404262023,1770012649547,-225.18697532,0.00017438,2]
[404262024,1770012649556,-924.60877284,0.00017438,2]
[404262025,1770012649566,-773.47,0.00017457,2]
[404262026,1770012649575,-10000.0,0.00017463,7]
[404262027,1770012649585,-1500.0,0.000175,2]
[404262028,1770012649594,-13442.50995431,0.000175,2]
[404262029,1770012649605,-1000.0,0.00017534,2]
[404262030,1770012649615,-2835.0,0.00017555,2]
[404262031,1770012649624,-164.0,0.000176,3]
[404262032,1770012649633,-3012.2001319,0.0001764,2]
[404262033,1770012649643,-578.0,0.00017644,2]
[404262034,1770012649653,-947.23523297,0.00017664,2]
[404262035,1770012649662,-1002.53462592,0.00017664,2]
[404262036,1770012649672,-502.76473862,0.00017664,2]
[404262037,1770012649681,-1002.03881526,0.00017664,2]
[404262038,1770012649691,-1504.86417643,0.00017664,2]
[404262039,1770012649700,-1216.63993214,0.00017664,2]
[404262040,1770012649710,-163.0,0.0001768,2]
[404262041,1770012649719,-320.0,0.0001768,2]
[404262042,1770012649728,-3521.0,0.00017686,2]
[404262043,1770012649738,-334.5472959,0.00017711,2]
[404262044,1770012649747,-25000.0,0.00017724,3]
[404262045,1770012649757,-25000.0,0.00017733,3]
[404262046,1770012649766,-25000.0,0.00017742,3]
[404262047,1770012649776,-25000.0,0.0001775,3]
[404262048,1770012649786,-25000.0,0.00017759,3]
[404262049,1770012649795,-25000.0,0.00017768,3]
[404262050,1770012649805,-25000.0,0.00017777,3]
[404262051,1770012649814,-25000.0,0.00017786,3]
[404262052,1770012649823,-151.0,0.00017788,2]
[404262053,1770012649833,-267.0,0.00017788,2]
[404262054,1770012649843,-150.0,0.00017788,2]
[404262055,1770012649855,-200.0,0.00017788,2]
[404262056,1770012649865,-196.165,0.00017788,2]
[404262057,1770012649875,-277.537,0.00017788,2]
[404262058,1770012649885,-229.207,0.00017788,2]
[404262059,1770012649895,-165.436,0.00017788,2]
[404262060,1770012649905,-158.676,0.00017788,2]
[404262061,1770012649914,-199.072,0.00017788,2]
[404262062,1770012649924,-285.665,0.00017788,2]
[404262063,1770012649933,-151.345,0.00017788,2]
[404262064,1770012649943,-151.0,0.00017788,2]
[404262065,1770012649953,-1410.0,0.00017788,2]
[404262066,1770012649963,-3481.0,0.00017788,2]
[404262067,1770012649972,-162.264,0.00017788,2]
[404262068,1770012649982,-1338.357,0.00017788,2]
[404262069,1770012649991,-728.464,0.00017788,2]
[404262070,1770012650001,-25000.0,0.00017794,3]
[404262071,1770012650011,-25000.0,0.00017803,3]
[404262072,1770012650020,-500.0,0.00017808,2]
[404262073,1770012650030,-1000.0,0.00017808,2]
[404262074,1770012650040,-1600.0,0.00017809,2]
[404262075,1770012650051,-25000.0,0.00017812,3]
[404262076,1770012650061,-2000.0,0.0001782,2]
[404262077,1770012650071,-2000.0,0.0001782,2]
[404262078,1770012650081,-25000.0,0.00017821,3]
[404262079,1770012650090,-25000.0,0.0001783,3]
[404262080,1770012650099,-25000.0,0.00017838,3]
[404262081,1770012650108,-25000.0,0.00017847,3]
[404262082,1770012650117,-200.0,0.00017855,2]
[404262083,1770012650127,-25000.0,0.00017856,3]
[404262084,1770012650136,-200.0,0.00017856,2]
[404262085,1770012650145,-200.0,0.00017856,2]
[404262086,1770012650155,-500.0,0.00017863,2]
[404262087,1770012650164,-25000.0,0.00017865,3]
[404262088,1770012650174,-160.02702936,0.00017873,2]
[404262089,1770012650183,-219.0,0.00017873,2]
[404262090,1770012650192,-25000.0,0.00017874,3]
[404262091,1770012650202,-627.0,0.00017878,2]
[404262092,1770012650211,-25000.0,0.00017882,3]
[404262093,1770012650220,-25000.0,0.00017891,3]
[404262094,1770012650229,-25000.0,0.000179,3]
[404262095,1770012650239,-181.47243878,0.000179,2]
[404262096,1770012650248,-315.04617958,0.000179,2]
[404262097,1770012650257,-154.23630069,0.000179,2]
[404262098,1770012650267,-1777.28427788,0.000179,3]
[404262099,1770012650280,-15252.87164763,0.000179,2]
[404262100,1770012650290,-176.37733019,0.000179,2]
[404262101,1770012650300,-15994.77007355,0.000179,2]
[404262102,1770012650309,-500.0,0.00017918,2]
[404262103,1770012650322,-506.1208044,0.00017972,2]
[404262104,1770012650331,-4993.0,0.00017973,2]
[404262105,1770012650340,-70450.2962973,0.00017983,2]
[404262106,1770012650352,-370.87018135,0.00017985,2]
[404262107,1770012650362,-233.51889341,0.00017986,2]
[404262108,1770012650371,-1592.87721993,0.00017986,2]
[404262109,1770012650381,-194.72792766,0.00017986,2]
[404262110,1770012650391,-233.51889341,0.00017986,2]
[404262111,1770012650404,-277.94807481,0.00017986,2]
[404262112,1770012650413,-362109.7374649,0.00017994,2]
[404262113,1770012650422,-7788.781216,0.00017994,2]
[404262114,1770012650431,-168.0,0.00017996,2]
[404262115,1770012650440,-248.17115062,0.00017999,2]
[404262116,1770012650449,-307.79570543,0.00017999,2]
[404262117,1770012650458,-300.0,0.00017999,2]
[404262118,1770012650468,-300.0,0.00017999,2]
[404262119,1770012650477,-300.0,0.00017999,2]
[404262120,1770012650486,-300.0,0.00017999,2]